{"text_format":"1","workbook":"xlsx","n_sheets":2,"sheets":["Order Details","Sheet1"],"not_rendered":{"charts":0,"images":1,"macros":1,"external_links":0,"defined_names":6,"comments":0,"pivot_tables":0},"unopened":[],"bounds":{"document_bytes":16777216,"sheet_cells":100000,"rows_first":2000,"rows_last":500,"rows_between":2000,"halvings":0,"cell_chars":16384,"cell_head_chars":4096},"cells_cut":0,"cells_raw":0,"read":"whole","date_system":"1900"}

{"sheet":"Order Details","index":0,"n_rows":51,"n_cols":7,"rows_kept":51,"cut":false,"hidden":false,"merged":[[6,1,6,5],[0,1,0,5]]}
[null,"ECE 495 Senior Design Parts Request Form (Multiple Vendors)"]
[]
[null,"Date",null,null,"Contact Name","Requestor's Name"]
[null,"Team ID","S22-10-DASH",null,"Contact Number","Requestor's Phone Number"]
[null,"Team Name",{"$f":"VLOOKUP(C4, Sheet1!A2:B10, 2, FALSE)","v":"Iinfrastructure installed in the ECBE"},null,"Email","Requestor's Email Address"]
[null,"FTA",{"$f":"VLOOKUP(C4, Sheet1!A2:C10, 3, FALSE)","v":"Dr. Anagnostopoulos"},null,"FTA Approval","FTA Signature"]
[null,"Instructions: Email your completed form to your course professor (be sure to include your Team ID in the email subject line)."]
[null,"Notes: Please enter a valid description (i.e. ribbon cable). Don't list a part number. Verify you're not selecting an overseas vendor. Verify your links."]
[]
[]
[null,"Order Details"]
[null,"Vendor Name","Description","Qty","Unit Price","Link","Total"]
[null,null,null,null,null,null,{"$f":"IFERROR(InvoiceDetails[[#This Row],[Qty]]*InvoiceDetails[[#This Row],[Unit Price]],\"\")","v":0}]
[null,null,null,null,null,null,{"$f":"IFERROR(InvoiceDetails[[#This Row],[Qty]]*InvoiceDetails[[#This Row],[Unit Price]],\"\")","v":0}]
[null,null,null,null,null,null,{"$f":"IFERROR(InvoiceDetails[[#This Row],[Qty]]*InvoiceDetails[[#This Row],[Unit Price]],\"\")","v":0}]
[null,null,null,null,null,null,{"$f":"IFERROR(InvoiceDetails[[#This Row],[Qty]]*InvoiceDetails[[#This Row],[Unit Price]],\"\")","v":0}]
[null,null,null,null,null,null,{"$f":"IFERROR(InvoiceDetails[[#This Row],[Qty]]*InvoiceDetails[[#This Row],[Unit Price]],\"\")","v":0}]
[null,null,null,null,null,null,{"$f":"IFERROR(InvoiceDetails[[#This Row],[Qty]]*InvoiceDetails[[#This Row],[Unit Price]],\"\")","v":0}]
[null,null,null,null,null,null,{"$f":"IFERROR(InvoiceDetails[[#This Row],[Qty]]*InvoiceDetails[[#This Row],[Unit Price]],\"\")","v":0}]
[null,null,null,null,null,null,{"$f":"IFERROR(InvoiceDetails[[#This Row],[Qty]]*InvoiceDetails[[#This Row],[Unit Price]],\"\")","v":0}]
[null,null,null,null,null,null,{"$f":"IFERROR(InvoiceDetails[[#This Row],[Qty]]*InvoiceDetails[[#This Row],[Unit Price]],\"\")","v":0}]
[null,null,null,null,null,null,{"$f":"IFERROR(InvoiceDetails[[#This Row],[Qty]]*InvoiceDetails[[#This Row],[Unit Price]],\"\")","v":0}]
[null,null,null,null,null,null,{"$f":"IFERROR(InvoiceDetails[[#This Row],[Qty]]*InvoiceDetails[[#This Row],[Unit Price]],\"\")","v":0}]
[null,null,null,null,null,null,{"$f":"IFERROR(InvoiceDetails[[#This Row],[Qty]]*InvoiceDetails[[#This Row],[Unit Price]],\"\")","v":0}]
[null,null,null,null,null,null,{"$f":"IFERROR(InvoiceDetails[[#This Row],[Qty]]*InvoiceDetails[[#This Row],[Unit Price]],\"\")","v":0}]
[null,null,null,null,null,null,{"$f":"IFERROR(InvoiceDetails[[#This Row],[Qty]]*InvoiceDetails[[#This Row],[Unit Price]],\"\")","v":0}]
[null,null,null,null,null,null,{"$f":"IFERROR(InvoiceDetails[[#This Row],[Qty]]*InvoiceDetails[[#This Row],[Unit Price]],\"\")","v":0}]
[null,null,null,null,null,null,{"$f":"IFERROR(InvoiceDetails[[#This Row],[Qty]]*InvoiceDetails[[#This Row],[Unit Price]],\"\")","v":0}]
[null,null,null,null,null,null,{"$f":"IFERROR(InvoiceDetails[[#This Row],[Qty]]*InvoiceDetails[[#This Row],[Unit Price]],\"\")","v":0}]
[null,null,null,null,null,null,{"$f":"IFERROR(InvoiceDetails[[#This Row],[Qty]]*InvoiceDetails[[#This Row],[Unit Price]],\"\")","v":0}]
[null,null,null,null,null,null,{"$f":"IFERROR(InvoiceDetails[[#This Row],[Qty]]*InvoiceDetails[[#This Row],[Unit Price]],\"\")","v":0}]
[null,null,null,null,null,null,{"$f":"IFERROR(InvoiceDetails[[#This Row],[Qty]]*InvoiceDetails[[#This Row],[Unit Price]],\"\")","v":0}]
[null,null,null,null,null,null,{"$f":"IFERROR(InvoiceDetails[[#This Row],[Qty]]*InvoiceDetails[[#This Row],[Unit Price]],\"\")","v":0}]
[null,null,null,null,null,null,{"$f":"IFERROR(InvoiceDetails[[#This Row],[Qty]]*InvoiceDetails[[#This Row],[Unit Price]],\"\")","v":0}]
[null,null,null,null,null,null,{"$f":"IFERROR(InvoiceDetails[[#This Row],[Qty]]*InvoiceDetails[[#This Row],[Unit Price]],\"\")","v":0}]
[null,null,null,null,null,null,{"$f":"IFERROR(InvoiceDetails[[#This Row],[Qty]]*InvoiceDetails[[#This Row],[Unit Price]],\"\")","v":0}]
[null,null,null,null,null,null,{"$f":"IFERROR(InvoiceDetails[[#This Row],[Qty]]*InvoiceDetails[[#This Row],[Unit Price]],\"\")","v":0}]
[null,null,null,null,null,null,{"$f":"IFERROR(InvoiceDetails[[#This Row],[Qty]]*InvoiceDetails[[#This Row],[Unit Price]],\"\")","v":0}]
[null,null,null,null,null,null,{"$f":"IFERROR(InvoiceDetails[[#This Row],[Qty]]*InvoiceDetails[[#This Row],[Unit Price]],\"\")","v":0}]
[null,null,null,null,null,null,{"$f":"IFERROR(InvoiceDetails[[#This Row],[Qty]]*InvoiceDetails[[#This Row],[Unit Price]],\"\")","v":0}]
[null,null,null,null,null,null,{"$f":"IFERROR(InvoiceDetails[[#This Row],[Qty]]*InvoiceDetails[[#This Row],[Unit Price]],\"\")","v":0}]
[null,null,null,null,null,null,{"$f":"IFERROR(InvoiceDetails[[#This Row],[Qty]]*InvoiceDetails[[#This Row],[Unit Price]],\"\")","v":0}]
[null,null,null,null,null,null,{"$f":"IFERROR(InvoiceDetails[[#This Row],[Qty]]*InvoiceDetails[[#This Row],[Unit Price]],\"\")","v":0}]
[null,null,null,null,null,null,{"$f":"IFERROR(InvoiceDetails[[#This Row],[Qty]]*InvoiceDetails[[#This Row],[Unit Price]],\"\")","v":0}]
[null,null,null,null,null,null,{"$f":"IFERROR(InvoiceDetails[[#This Row],[Qty]]*InvoiceDetails[[#This Row],[Unit Price]],\"\")","v":0}]
[null,null,null,null,null,null,{"$f":"IFERROR(InvoiceDetails[[#This Row],[Qty]]*InvoiceDetails[[#This Row],[Unit Price]],\"\")","v":0}]
[null,null,null,null,null,null,{"$f":"IFERROR(InvoiceDetails[[#This Row],[Qty]]*InvoiceDetails[[#This Row],[Unit Price]],\"\")","v":0}]
[null,null,null,null,null,null,{"$f":"IFERROR(InvoiceDetails[[#This Row],[Qty]]*InvoiceDetails[[#This Row],[Unit Price]],\"\")","v":0}]
[null,null,null,null,null,null,{"$f":"IFERROR(InvoiceDetails[[#This Row],[Qty]]*InvoiceDetails[[#This Row],[Unit Price]],\"\")","v":0}]
[null,null,null,null,null,null,{"$f":"IFERROR(InvoiceDetails[[#This Row],[Qty]]*InvoiceDetails[[#This Row],[Unit Price]],\"\")","v":0}]
[null,null,null,null,null,"Total",{"$f":"SUM(G13:G50)","v":0}]

{"sheet":"Sheet1","index":1,"n_rows":10,"n_cols":3,"rows_kept":10,"cut":false,"hidden":true,"merged":[]}
["Lookup Table","Description","FTA"]
["S22-10-DASH","Iinfrastructure installed in the ECBE","Dr. Anagnostopoulos"]
["S22-11-HWPV","Wind/Power","Ehsan/Dr. Asrari"]
["F21-90-BOE1","Boeing Team 1","Mike Cubley"]
["F21-91-BOE2","Boeing Team 2","Mike Cubley"]
["F21-92-NAPP","Nutrition App","Dr. Harackiewicz"]
["F21-93-IOTS","IoT Sensor","Dr. Haibo Wang"]
["F21-94-CGPU","Create your own GPU","Dr. Anagnostopoulos"]
["F21-95-HWPV","Wind/Power","Dr. Asrari"]
["F21-96-IEPA","IEPA Grant","Dr. Baduge"]